bitfinex-derivatives/quotes_SOLF0:USTF0_20250117
["timestamp","ask_amount","ask_price","bid_price","bid_amount"]
[1737154850891,4.5631,219.08,219.03,4.5639]
[1737154853296,4.5627,219.09,219.04,6.97877443]
[1737154853486,6.97877443,219.11,219.04,6.97877443]
[1737154854501,6.97877443,219.11,219.04,11.54227443]
[1737154855396,6.97877443,219.11,219.06,4.5631]
[1737154855600,4.8,219.12,219.06,4.5631]
[1737154855800,4.5628,219.09,219.06,4.5631]
[1737154856597,4.8,219.12,219.04,6.97877443]
[1737154856799,6.97877443,219.11,219.04,6.97877443]
[1737154857399,4.5627,219.09,219.04,6.97877443]
[1737154860105,4.5627,219.09,219.06,4.5633]
[1737154860806,4.5625,219.1,219.06,4.5633]
[1737154861507,6.97877443,219.11,219.06,4.5633]
[1737154861708,4.5627,219.09,219.06,4.5633]
[1737154864810,4.5631,219.08,219.04,4.5637]
[1737154865311,6.97877443,219.05,218.86,195.0]
[1737154865507,6.97877443,219.01,218.94,6.97877443]
[1737154866007,11.54317443,219.01,218.94,6.97877443]
[1737154866210,6.97877443,219.01,218.94,6.97877443]
[1737154866506,6.97877443,219.01,218.91,4.5663]
[1737154866704,6.97877443,219.01,218.82,50.40665422]
[1737154866705,6.97877443,218.97,218.89,6.97877443]
[1737154867309,6.97877443,218.95,218.86,6.97877443]
[1737154867515,6.97877443,218.95,218.82,4.5264]
[1737154867714,4.8,219.0,218.82,4.5264]
[1737154867715,6.97877443,218.93,218.84,6.97877443]
[1737154867917,6.97877443,218.93,218.82,4.5264]
[1737154868113,6.97877443,218.93,218.84,6.97877443]
[1737154868315,6.97877443,218.91,218.82,4.5264]
[1737154868515,6.97877443,218.91,218.82,11.50517443]
[1737154869217,4.5667,218.9,218.82,11.50517443]
[1737154869411,6.97877443,218.91,218.82,11.50517443]
[1737154870110,6.97877443,218.91,218.84,6.97877443]
[1737154870315,11.54527443,218.91,218.82,11.50517443]
[1737154870715,6.97877443,218.91,218.85,4.5676]
[1737154871722,6.97877443,218.91,218.86,4.5675]
[1737154875716,4.8,219.0,218.83,6.97877443]
[1737154875925,4.5659,218.94,218.87,4.5671]
[1737154876120,6.97877443,218.91,218.83,6.97877443]
[1737154876318,6.97877443,218.89,218.83,4.5679]
[1737154876525,6.97877443,218.87,218.83,4.5679]
[1737154879722,6.97877443,218.85,218.8,4.5685]
[1737154879925,6.97877443,218.85,218.77,6.97877443]
[1737154880125,6.97877443,218.85,218.68,6.30083177]
[1737154880322,4.5671,218.88,218.78,6.97877443]
[1737154880628,6.97877443,218.93,218.84,6.97877443]
[1737154880921,6.97877443,218.93,218.89,4.5668]
[1737154881620,11.54487443,218.93,218.89,4.5668]
[1737154883126,6.97877443,218.91,218.89,4.5668]
[1737154884821,6.97877443,218.91,218.84,6.97877443]
[1737154885028,6.97877443,218.91,218.88,4.567]
[1737154894430,11.54527443,218.91,218.88,4.567]
[1737154895729,4.5665,218.91,218.88,4.567]
[1737154896030,6.97877443,218.93,218.9,4.5665]
[1737154896333,6.97877443,218.94,218.9,4.5665]
[1737154897332,4.5661,218.93,218.9,4.5665]
[1737154903534,2.298,219.0,218.86,6.97877443]
[1737154903839,6.97877443,218.94,218.86,6.97877443]
[1737154904234,11.54457443,218.94,218.86,6.97877443]
[1737154905130,11.54457443,218.94,218.91,4.5664]
[1737154905540,6.97877443,218.94,218.86,6.97877443]
[1737154905739,4.5656,218.95,218.92,4.5661]
[1737154906338,4.5654,218.97,218.94,4.5658]
[1737154906541,11.54417443,218.97,218.94,4.5658]
[1737154910144,194.0,219.07,218.96,4.5654]
[1737154910342,6.97877443,218.99,218.92,6.97877443]
[1737154910543,6.97877443,218.99,218.86,9.1349]
[1737154910544,6.97877443,218.99,218.94,6.97877443]
[1737154910741,6.97877443,218.99,218.98,4.565]
[1737154911350,6.97877443,219.01,218.94,6.97877443]
[1737154911551,75.7843,219.02,218.99,4.5647]
[1737154911749,6.97877443,219.01,218.99,4.5647]
[1737154912546,71.22,219.02,219.0,4.5646]
[1737154912752,6.97877443,219.01,218.94,6.97877443]
[1737154913654,6.97877443,219.01,218.99,4.5647]
[1737154913851,71.22,219.02,218.94,6.97877443]
[1737154914054,71.22,219.02,218.96,6.97877443]
[1737154915050,71.22,219.02,219.0,4.5646]
[1737154915450,6.97877443,219.01,218.94,6.97877443]
[1737154915753,6.97877443,218.99,218.92,4.5641]
[1737154916058,6.97877443,218.99,218.96,4.5652]
[1737154917455,6.97877443,218.99,218.97,4.5652]
[1737154921956,11.54317443,219.01,218.98,4.565]
[1737154922256,6.97877443,219.01,218.98,4.565]
[1737154923050,71.22,219.02,219.01,4.5644]
[1737154923353,78.19877443,219.02,219.01,4.5644]
[1737154923853,4.5638,219.04,219.01,4.5644]
[1737154924058,4.5634,219.06,218.98,6.97877443]
[1737154924359,6.97877443,219.05,218.98,6.97877443]
[1737154924756,6.97877443,219.05,219.04,4.5637]
[1737154925052,6.97877443,219.07,219.0,6.97877443]
[1737154925258,6.97877443,219.07,219.06,4.5633]
[1737154926659,4.5636,219.05,219.01,4.5642]
[1737154926859,11.54237443,219.05,219.01,4.5642]
[1737154927060,6.97877443,219.03,219.01,4.5642]
[1737154927560,6.97877443,219.04,219.02,4.564]
[1737154929261,6.97877443,219.04,219.0,4.5645]
[1737154929458,6.97877443,219.02,218.93,11.87137443]
[1737154929664,6.97877443,219.0,218.93,11.87137443]
[1737154929961,6.97877443,218.98,218.93,4.8926]
[1737154930560,6.97877443,218.98,218.95,4.5654]
[1737154930762,11.54347443,219.0,218.93,4.8926]
[1737154930957,6.97877443,219.0,218.93,11.87137443]
[1737154931163,4.5644,219.01,218.93,11.87137443]
[1737154932067,6.97877443,219.02,218.95,6.97877443]
[1737154932269,11.54297443,219.02,218.95,6.97877443]
[1737154932962,11.54297443,219.02,218.97,4.5652]
[1737154934559,6.97877443,219.02,218.97,4.5652]
[1737154934869,6.97877443,219.0,218.97,4.5652]
[1737154935162,6.97877443,219.0,218.95,4.5654]
[1737154935569,4.5649,218.99,218.95,4.5654]
[1737154936767,6.97877443,218.98,218.85,6.30083177]
[1737154937069,11.54417443,218.96,218.88,6.97877443]
[1737154938064,11.54417443,218.96,218.92,4.5662]
[1737154943668,4.5654,218.96,218.92,4.5662]
[1737154943972,4.5654,218.96,218.93,4.566]
[1737154959977,6.97877443,218.99,218.91,6.97877443]
[1737154960276,4.5652,218.97,218.94,4.5658]
[1737154967385,6.97877443,218.99,218.91,6.97877443]
[1737154967585,6.97877443,218.99,218.93,4.566]
[1737154967586,4.5654,218.96,218.93,4.566]
[1737154978793,4.5652,218.97,218.94,4.5658]
[1737154978993,11.77877443,219.01,218.93,6.97877443]
[1737154979188,4.8,219.01,218.95,6.97877443]
[1737154979385,71.24,219.07,218.99,6.97877443]
[1737154979589,71.24,219.07,218.87,9.1345]
[1737154979590,78.21877443,219.07,219.01,6.97877443]
[1737154980595,6.97877443,219.07,219.01,6.97877443]
[1737154981198,4.5637,219.04,219.01,11.54307443]
[1737154981795,4.5637,219.04,219.01,4.5643]
[1737154982294,4.564,219.03,219.0,4.5645]
[1737154982693,6.97877443,219.01,218.87,9.1345]
[1737154982893,6.97877443,219.01,218.94,6.97877443]
[1737154983101,6.97877443,218.99,218.94,6.97877443]
[1737154983297,11.54367443,218.99,218.95,4.5654]
[1737154983500,6.97877443,218.97,218.84,4.8]
[1737154983700,6.97877443,218.95,218.89,6.97877443]
[1737154985198,4.5659,218.94,218.9,4.5665]
[1737154987393,6.97877443,218.93,218.87,25.47655696]
[1737154987593,6.97877443,218.91,218.87,25.47655696]
[1737154987804,6.97877443,218.91,218.86,6.36913924]
[1737154988494,4.567,218.89,218.84,30.04445696]
[1737154988703,6.97877443,218.87,218.84,25.47655696]
[1737154989301,4.5677,218.85,218.82,6.36913924]
[1737154990201,4.568,218.84,218.78,6.36913924]
[1737154990397,6.97877443,218.83,218.78,6.36913924]
[1737154991204,6.97877443,218.83,218.79,4.5689]
[1737154991506,6.97877443,218.85,218.77,6.97877443]
[1737154991702,6.97877443,218.88,218.79,6.97877443]
[1737154991901,4.8,218.89,218.83,6.97877443]
[1737154992302,6.97877443,218.9,218.77,25.47655696]
[1737154992504,6.97877443,218.9,218.86,4.5673]
[1737154993908,4.5666,218.91,218.86,4.5673]
[1737154994999,6.97877443,218.9,218.86,4.5673]
[1737154995704,11.54537443,218.9,218.86,4.5673]
[1737154996512,4.8,218.95,218.83,6.97877443]
[1737154996708,6.97877443,218.92,218.85,6.97877443]
[1737154997110,11.54497443,218.92,218.89,4.5668]
[1737154998207,6.97877443,218.92,218.9,4.5666]
[1737154999102,11.54457443,218.94,218.9,4.5666]
[1737154999301,11.54457443,218.94,218.85,6.97877443]
[1737154999302,11.54457443,218.94,218.86,4.5097]
[1737155000105,11.54457443,218.94,218.88,4.567]
[1737155000106,4.566,218.93,218.88,4.567]
[1737155000308,4.566,218.93,218.86,4.5097]
[1737155001111,4.566,218.93,218.89,4.5667]
[1737155001313,6.97877443,218.92,218.89,4.5667]
[1737155003511,6.97877443,218.92,218.81,25.47655696]
[1737155003712,11.54557443,218.9,218.86,4.5673]
[1737155003909,11.54557443,218.9,218.82,6.97877443]
[1737155004212,6.97877443,218.92,218.84,6.97877443]
[1737155004615,6.97877443,218.92,218.89,4.5668]
[1737155006516,6.97877443,218.92,218.86,6.97877443]
[1737155006716,10.85613012,218.96,218.82,6.36913924]
[1737155006919,6.97877443,218.98,218.9,6.97877443]
[1737155008411,6.97877443,218.98,218.87,25.47655696]
[1737155008608,6.97877443,218.92,218.87,25.47655696]
[1737155008809,6.97877443,218.9,218.87,25.47655696]
[1737155009114,6.97877443,218.9,218.83,25.40083755]
[1737155009115,6.97877443,218.9,218.83,6.97877443]
[1737155009915,11.54537443,218.9,218.83,6.97877443]
[1737155010421,11.54537443,218.9,218.81,6.97877443]
[1737155011025,6.97877443,218.88,218.8,8.65823924]
[1737155011222,2.3413,218.93,218.8,6.36913924]
[1737155011429,6.97877443,218.84,218.79,2.2356]
[1737155011624,6.97877443,218.86,218.8,6.97877443]
[1737155011825,6.97877443,218.89,218.8,6.97877443]
[1737155012027,6.97877443,218.91,218.82,6.97877443]
[1737155012225,6.97877443,218.87,218.79,2.2356]
[1737155012425,6.97877443,218.85,218.79,9.21437443]
[1737155012924,6.97877443,218.85,218.81,4.5683]
[1737155013128,6.97877443,218.85,218.79,9.21437443]
[1737155013723,6.97877443,218.88,218.79,2.2356]
[1737155013928,6.97877443,218.91,218.83,6.97877443]
[1737155014324,6.97877443,218.89,218.87,4.5672]
[1737155015230,11.54567443,218.89,218.84,4.5679]
[1737155015531,11.54617443,218.87,218.82,4.5683]
[1737155015730,6.97877443,218.85,218.82,4.5683]
[1737155016432,11.54687443,218.83,218.75,32.45533139]
[1737155016827,4.8,218.94,218.75,32.45533139]
[1737155017028,6.97877443,218.86,218.79,6.97877443]
[1737155017529,11.54637443,218.86,218.81,4.5683]
[1737155018029,11.54637443,218.86,218.79,6.97877443]
[1737155019127,6.97877443,218.86,218.83,4.5679]
[1737155019433,6.97877443,218.84,218.77,6.97877443]
[1737155019634,6.97877443,218.86,218.83,4.5681]
[1737155020430,4.8,218.94,218.79,6.97877443]
[1737155020632,6.97877443,218.89,218.85,4.5676]
[1737155020928,4.82,218.93,218.85,6.97877443]
[1737155021124,6.97877443,218.92,218.85,6.97877443]
[1737155021427,4.82,218.93,218.85,6.97877443]
[1737155021628,11.79877443,218.93,218.85,6.97877443]
[1737155021832,6.97877443,218.93,218.85,6.97877443]
[1737155022532,71.26,218.96,218.93,4.566]
[1737155022732,71.26,219.1,218.95,6.97877443]
[1737155023035,6.97877443,219.02,218.95,6.97877443]
[1737155023431,14.78815922,219.04,218.91,15.72962979]
[1737155025228,19.35185922,219.04,218.91,15.72962979]
[1737155025437,3.77922943,219.04,218.94,11.00892979]
[1737155025631,3.77922943,219.04,219.0,4.5646]
[1737155027938,3.77922943,219.04,218.94,11.00892979]
[1737155028140,3.77922943,219.04,219.01,4.5643]
[1737155029134,3.77922943,219.04,218.94,11.00892979]
[1737155029335,15.57202979,219.07,218.94,11.00892979]
[1737155029738,11.00892979,219.07,218.94,11.00892979]
[1737155030342,4.5634,219.06,218.94,11.00892979]
[1737155030840,4.5634,219.06,219.01,4.5641]
[1737155032544,4.5634,219.06,219.02,4.564]
[1737155033742,4.5634,219.06,218.94,11.00892979]
[1737155033942,4.5634,219.06,219.03,4.5639]
[1737155034939,4.5634,219.06,218.94,11.00892979]
[1737155035139,11.00892979,219.07,219.02,4.5641]
[1737155035345,4.5635,219.05,219.02,4.5641]
[1737155037145,4.5633,219.06,219.03,4.5639]
[1737155040441,11.00892979,219.13,219.0,11.00892979]
[1737155040643,11.00892979,219.16,219.03,11.00892979]
[1737155041147,4.5616,219.15,219.1,4.5624]
[1737155041349,4.5616,219.15,219.06,11.00892979]
[1737155041944,11.00892979,219.19,219.06,11.00892979]
[1737155042140,4.5611,219.17,219.12,4.5619]
[1737155042841,15.56952979,219.19,219.06,11.00892979]
[1737155043049,15.56952979,219.19,219.09,11.00892979]
[1737155043050,4.5606,219.19,219.09,11.00892979]
[1737155044744,4.5612,219.17,219.09,11.00892979]
[1737155044949,11.00892979,219.19,219.06,11.00892979]
[1737155045751,11.00892979,219.13,219.02,2.2656]
[1737155045952,11.00892979,219.13,219.04,4.5635]
[1737155046149,11.00892979,219.13,219.02,2.2656]
[1737155046952,11.00892979,219.16,219.02,2.2656]
[1737155047254,2.379,219.18,219.03,11.00892979]
[1737155047448,4.5616,219.15,219.07,4.563]
[1737155047648,11.00892979,219.19,219.03,11.00892979]
[1737155048051,11.00892979,219.19,219.06,11.00892979]
[1737155049247,4.5608,219.18,219.13,4.5618]
[1737155049450,11.59583639,219.18,219.13,4.5618]
[1737155049855,4.561,219.17,219.13,4.5618]
[1737155051352,11.59603639,219.17,219.13,4.5618]
[1737155055051,7.03503639,219.17,219.1,7.03503639]
[1737155055252,4.5612,219.16,219.1,7.03503639]
[1737155056056,4.5612,219.16,219.13,4.5618]
[1737155056458,7.03503639,219.17,219.08,7.03503639]
[1737155057056,2.3163,219.2,219.1,7.03503639]
[1737155057254,7.03503639,219.2,219.14,7.03503639]
[1737155057455,7.03503639,219.22,219.14,7.03503639]
[1737155057758,4.5604,219.21,219.17,4.561]
[1737155057959,7.03503639,219.22,219.14,7.03503639]
[1737155058154,7.03503639,219.18,219.1,7.03503639]
[1737155058364,7.03503639,219.12,219.06,7.03503639]
[1737155059062,11.59713639,219.12,219.08,4.5628]
[1737155059662,4.5625,219.1,219.06,4.5632]
[1737155060163,4.5625,219.1,219.07,4.5631]
[1737155061264,7.03503639,219.12,219.04,7.03503639]
[1737155061467,11.00003274,219.14,219.05,4.5634]
[1737155062266,4.5627,219.1,219.06,4.5632]
[1737155063462,4.5623,219.11,219.06,4.5632]
[1737155063765,4.5623,219.11,218.97,11.00003274]
[1737155063766,11.00003274,219.11,218.97,11.00003274]
[1737155063962,6.854,219.16,219.03,11.00003274]
[1737155064166,11.00003274,219.14,218.96,6.98]
[1737155064366,11.00003274,219.11,218.97,11.00003274]
[1737155064568,11.00003274,219.11,218.97,17.36917198]
[1737155065167,11.00003274,219.08,218.96,6.98]
[1737155065373,4.8,219.08,218.97,11.00003274]
[1737155065573,15.80003274,219.14,219.0,11.00003274]
[1737155065773,4.8,219.14,219.03,11.00003274]
[1737155066165,4.8,219.14,219.01,11.00003274]
[1737155066372,11.00003274,219.13,218.99,11.00003274]
[1737155066773,4.5631,219.08,219.04,4.5637]
[1737155067073,11.00003274,219.13,218.99,11.00003274]
[1737155067272,4.8,219.14,219.02,11.00003274]
[1737155067472,4.8,219.14,219.1,4.5624]
[1737155069675,9.3617,219.14,219.1,4.5624]
[1737155070776,4.5611,219.17,219.05,11.00003274]
[1737155070985,13.41073274,219.22,219.08,11.00003274]
[1737155071177,13.41073274,219.22,219.09,2.357]
[1737155071372,11.00003274,219.22,219.09,2.357]
[1737155071572,11.00003274,219.25,219.11,11.00003274]
[1737155072483,11.00003274,219.25,219.11,10.95235861]
[1737155072883,11.00003274,219.28,219.14,11.00003274]
[1737155073078,11.00003274,219.28,219.15,4.5304]
[1737155073274,4.5592,219.26,219.18,4.5606]
[1737155073479,4.5592,219.26,219.15,4.5304]
[1737155073874,4.5589,219.27,219.22,4.5599]
[1737155074280,18.19753274,219.31,219.17,11.00003274]
[1737155074581,13.41073274,219.31,219.26,4.5589]
[1737155075085,15.55813274,219.31,219.26,4.5589]
[1737155075582,11.00003274,219.28,219.15,15.53043274]
[1737155075778,4.5592,219.26,219.15,15.53043274]
[1737155075980,11.00003274,219.28,219.15,15.53043274]
[1737155076479,4.5594,219.25,219.2,4.5602]
[1737155076675,11.00003274,219.31,219.18,11.00003274]
[1737155077079,15.55813274,219.31,219.22,4.5599]
[1737155077281,11.00003274,219.31,219.19,2.2283]
[1737155077981,5.58004543,219.34,219.24,11.00003274]
[1737155078781,5.58004543,219.34,219.25,4.7231]
[1737155081584,5.58004543,219.34,219.29,4.5583]
[1737155081585,10.13754543,219.34,219.29,4.5583]
[1737155083084,10.13754543,219.34,219.3,4.5583]
[1737155084388,5.58004543,219.34,219.32,4.5578]
[1737155084580,5.58004543,219.34,219.25,4.7231]
[1737155084781,16.58007817,219.34,219.25,4.7231]
[1737155084985,4.5583,219.31,219.27,4.5589]
[1737155085788,4.5579,219.33,219.29,4.5585]
[1737155085988,11.00003274,219.37,219.24,11.00003274]
[1737155086287,4.5566,219.39,219.34,4.5574]
[1737155086491,15.80003274,219.4,219.34,4.5574]
[1737155086888,11.00003274,219.4,219.27,11.00003274]
[1737155087185,11.00003274,219.46,219.3,11.00003274]
[1737155087391,0.83758777,219.45,219.33,11.00003274]
[1737155087791,4.5556,219.43,219.36,4.5569]
[1737155088092,4.5556,219.43,219.33,11.00003274]
[1737155088586,4.5559,219.42,219.37,4.5568]
[1737155088796,11.00003274,219.4,219.28,4.6743]
[1737155089792,4.5567,219.38,219.34,4.5574]
[1737155089993,11.00003274,219.44,219.3,11.00003274]
[1737155090292,11.00003274,219.47,219.33,11.00003274]
[1737155090489,11.00003274,219.47,219.4,4.556]
[1737155090689,7.2463,219.48,219.29,2.2263]
[1737155090690,7.2463,219.48,219.36,11.00003274]
[1737155090989,2.4607,219.48,219.36,11.00003274]
[1737155091188,11.00003274,219.47,219.33,11.00003274]
[1737155092490,11.00003274,219.47,219.36,11.00003274]
[1737155092791,4.555,219.46,219.41,4.5558]
[1737155093397,4.5548,219.48,219.43,4.5556]
[1737155093593,4.5548,219.48,219.39,11.00003274]
[1737155093794,11.00003274,219.51,219.39,11.00003274]
[1737155094097,4.5544,219.49,219.44,4.5554]
[1737155094690,4.5544,219.49,219.39,11.00003274]
[1737155094891,4.5544,219.49,219.45,4.5552]
[1737155096294,73.4975,219.53,219.39,11.00003274]
[1737155096503,4.5548,219.47,219.43,4.5555]
[1737155096896,4.5544,219.49,219.45,4.555]
[1737155097203,73.4975,219.53,219.42,11.00003274]
[1737155097399,0.83727578,219.52,219.42,11.00003274]
[1737155097599,0.83727578,219.52,219.49,4.5544]
[1737155097901,73.4975,219.53,219.49,4.5544]
[1737155098101,4.554,219.51,219.47,4.5546]
[1737155098400,84.49753274,219.53,219.42,11.00003274]
[1737155099197,4.5546,219.48,219.45,4.555]
[1737155099402,11.00003274,219.5,219.38,11.00003274]
[1737155099798,4.5552,219.46,219.42,4.5557]
[1737155100601,4.5548,219.47,219.43,4.5555]
[1737155101201,11.00003274,219.5,219.38,11.00003274]
[1737155101401,11.00003274,219.47,219.32,11.00003274]
[1737155101795,4.5565,219.39,219.32,11.00003274]
[1737155102095,11.00003274,219.44,219.32,11.00003274]
[1737155102700,4.5559,219.42,219.37,4.5567]
[1737155103096,2.2825,219.46,219.37,4.5567]
[1737155103303,4.5562,219.41,219.37,4.5567]
[1737155103500,2.2825,219.46,219.35,4.5571]
[1737155104000,4.5563,219.4,219.32,11.00003274]
[1737155104304,4.5563,219.4,219.36,4.5571]
[1737155108608,4.5561,219.41,219.37,4.5567]
[1737155109509,4.5563,219.4,219.37,4.5567]
[1737155111308,4.5563,219.4,219.37,11.57607699]
[1737155113407,7.01937699,219.4,219.33,7.01937699]
[1737155113610,7.01937699,219.38,219.31,7.01937699]
[1737155113910,4.5571,219.36,219.31,11.57737699]
[1737155114208,4.873,219.45,219.35,7.01937699]
[1737155114406,4.5564,219.4,219.37,4.5567]
[1737155114609,7.01937699,219.4,219.28,4.6743]
[1737155114809,7.01937699,219.4,219.32,7.01937699]
[1737155115112,4.557,219.37,219.34,4.5575]
[1737155115314,4.557,219.37,219.32,7.01937699]
[1737155115609,7.01937699,219.4,219.33,4.5575]
[1737155115813,4.5571,219.36,219.33,4.5575]
[1737155116009,7.01937699,219.4,219.28,4.6743]
[1737155116208,7.01937699,219.38,219.31,4.5581]
[1737155116416,4.5576,219.34,219.31,4.5581]
[1737155116606,7.01937699,219.36,219.28,7.01937699]
[1737155116809,4.5581,219.32,219.28,7.01937699]
[1737155117617,7.01937699,219.34,219.28,7.01937699]
[1737155117805,4.5576,219.34,219.3,4.5582]
[1737155118204,7.01937699,219.36,219.3,7.01937699]
[1737155118409,4.873,219.45,219.23,2.3519]
[1737155118410,7.01937699,219.4,219.34,7.01937699]
[1737155119517,4.5566,219.39,219.35,4.5572]
[1737155120016,7.01937699,219.4,219.34,7.01937699]
[1737155120313,4.5568,219.38,219.35,4.5572]
[1737155121512,4.5569,219.37,219.33,4.5575]
[1737155121714,7.01937699,219.39,219.33,4.5575]
[1737155122512,4.5569,219.37,219.33,4.5575]
[1737155123516,4.5566,219.39,219.35,4.5572]
[1737155124013,4.5562,219.41,219.37,4.5568]
[1737155124716,7.01937699,219.43,219.37,4.5568]
[1737155126117,4.5561,219.41,219.37,4.5568]
[1737155126817,7.01937699,219.43,219.37,4.5568]
[1737155127015,4.5563,219.4,219.37,4.5568]
[1737155127918,4.556,219.42,219.39,4.5564]
[1737155128114,11.89237699,219.45,219.39,4.5564]
[1737155129315,7.01937699,219.48,219.42,7.01937699]
[1737155129816,7.01937699,219.48,219.41,7.01937699]
[1737155130018,7.01937699,219.42,219.32,7.1457]
[1737155130216,7.01937699,219.42,219.35,7.01937699]
[1737155130413,4.5566,219.39,219.35,11.57657699]
[1737155130814,7.01937699,219.42,219.37,7.01937699]
[1737155131220,4.5564,219.39,219.37,7.01937699]
[1737155132317,7.01937699,219.38,219.3,7.01937699]
[1737155132923,7.01937699,219.38,219.32,7.01937699]
[1737155133818,4.557,219.37,219.32,7.01937699]
[1737155134014,7.01937699,219.38,219.32,7.01937699]
[1737155136124,4.5573,219.35,219.32,7.01937699]
[1737155140724,4.5569,219.37,219.34,4.5574]
[1737155140929,11.81937699,219.42,219.36,7.01937699]
[1737155141125,7.01937699,219.44,219.36,7.01937699]
[1737155142225,4.5563,219.4,219.37,4.5568]
[1737155148728,4.556,219.42,219.39,4.5563]
[1737155148926,7.01937699,219.48,219.4,7.01937699]
[1737155149122,7.01937699,219.48,219.42,7.01937699]
[1737155149324,4.5553,219.45,219.42,7.01937699]
[1737155149924,4.5553,219.45,219.42,11.57507699]
[1737155158047,4.5554,219.44,219.41,4.556]
[1737155159952,4.5554,219.44,219.33,4.5691]
[1737155159953,7.01937699,219.44,219.38,7.01937699]
[1737155160149,7.01937699,219.42,219.33,4.5691]
[1737155160349,7.01937699,219.42,219.35,7.01937699]
[1737155160550,4.5568,219.38,219.34,4.5573]
[1737155161154,4.8,219.42,219.35,7.01937699]
[1737155161357,7.01937699,219.46,219.39,7.01937699]
[1737155163052,4.5555,219.44,219.41,4.556]
[1737155163953,11.57457699,219.46,219.42,4.5558]
[1737155164254,4.5552,219.46,219.42,4.5558]
[1737155165455,4.5555,219.44,219.4,4.5562]
[1737155165653,4.5555,219.44,219.4,11.57557699]
[1737155167954,3.61917914,219.55,219.42,7.01937699]
[1737155168154,4.5546,219.48,219.44,4.5553]
[1737155168357,4.5546,219.48,219.44,11.57467699]
[1737155170361,7.01937699,219.47,219.41,4.5558]
[1737155171459,4.5553,219.45,219.42,4.5558]
[1737155172359,7.01937699,219.45,219.42,4.5558]
[1737155172664,4.5552,219.45,219.42,4.5558]
[1737155173361,7.01937699,219.47,219.42,4.5558]
[1737155173560,4.555,219.46,219.42,4.5558]
[1737155175066,4.5553,219.45,219.42,4.5558]
[1737155177866,7.01937699,219.47,219.33,6.8789]
[1737155178067,4.5557,219.43,219.39,4.5563]
[1737155178263,7.01937699,219.45,219.36,7.01937699]
[1737155178467,4.556,219.42,219.38,4.5566]
[1737155180268,4.5561,219.41,219.38,4.5566]
[1737155181767,4.5561,219.41,219.36,7.01937699]
[1737155181967,4.5561,219.41,219.39,4.5564]
[1737155185368,7.01937699,219.43,219.36,7.01937699]
[1737155185671,7.01937699,219.41,219.34,7.01937699]
[1737155185972,7.01937699,219.39,219.33,4.5822]
[1737155186172,4.5567,219.38,219.34,7.01937699]
[1737155186366,7.01937699,219.41,219.34,7.01937699]
[1737155187572,7.01937699,219.43,219.36,7.01937699]
[1737155187767,7.01937699,219.43,219.33,4.5822]
[1737155187969,7.01937699,219.43,219.36,7.01937699]
[1737155189074,4.5562,219.41,219.37,4.5568]
[1737155193477,4.5562,219.41,219.38,4.5566]
[1737155195178,4.5563,219.4,219.37,4.5568]
[1737155196177,4.5563,219.4,219.36,7.01937699]
[1737155196178,11.57587699,219.39,219.36,4.557]
[1737155196680,4.5565,219.39,219.36,4.557]
[1737155197681,7.01937699,219.39,219.33,4.5576]
[1737155198485,4.5569,219.37,219.33,4.5576]
[1737155199182,4.5569,219.37,219.34,4.5574]
[1737155201986,4.5565,219.39,219.36,4.557]
[1737155204193,4.5563,219.4,219.36,4.557]
[1737155204492,7.01937699,219.41,219.34,7.01937699]
[1737155204691,7.01937699,219.43,219.36,7.01937699]
[1737155205286,4.5559,219.42,219.36,7.01937699]
[1737155205493,7.01937699,219.45,219.38,7.01937699]
[1737155206394,4.5556,219.44,219.4,4.5561]
[1737155209595,4.5556,219.43,219.4,4.5561]
[1737155213898,7.01937699,219.45,219.38,7.01937699]
[1737155214098,4.5551,219.46,219.4,7.01937699]
[1737155214397,4.5551,219.46,219.41,7.01937699]
[1737155214898,4.5551,219.46,219.42,4.5557]
[1737155215100,4.5551,219.46,219.41,7.01937699]
[1737155215501,4.5551,219.46,219.43,4.5556]
[1737155219204,4.5544,219.49,219.45,4.5551]
[1737155221002,4.5548,219.48,219.44,11.57477699]
[1737155221203,7.01937699,219.46,219.4,7.01937699]
[1737155221506,7.01937699,219.48,219.42,7.01937699]
[1737155221699,4.5549,219.47,219.43,4.5554]
[1737155223308,7.01937699,219.48,219.42,7.01937699]
[1737155223509,11.57397699,219.48,219.45,4.5552]
[1737155223709,4.5546,219.48,219.45,4.5552]